[Event "Live Chess"]
[Site "Chess.com"]
[Date "2010.12.14"]
[Round "-"]
[White "hipposcottimus"]
[Black "dantime13"]
[Result "1-0"]
[CurrentPosition "4r3/6bp/2k2q2/1PPp4/8/7Q/P4P1P/R4RK1 b - -"]
[Timezone "UTC"]
[ECO "B12"]
[ECOUrl "https://www.chess.com/openings/Caro-Kann-Defense-2.d4"]
[UTCDate "2010.12.14"]
[UTCTime "10:06:38"]
[WhiteElo "1648"]
[BlackElo "1650"]
[TimeControl "60"]
[Termination "hipposcottimus won on time"]
[StartTime "10:06:38"]
[EndDate "2010.12.14"]
[EndTime "10:08:48"]
[Link "https://www.chess.com/game/live/77163130"]

1. e4 {[%clk 0:01:00]} 1... c6 {[%clk 0:01:00]} 2. d4 {[%clk 0:00:58.1]} 2... b5 {[%clk 0:01:00]} 3. c4 {[%clk 0:00:56.3]} 3... a6 {[%clk 0:00:59.3]} 4. cxb5 {[%clk 0:00:54.8]} 4... axb5 {[%clk 0:00:58.6]} 5. Nc3 {[%clk 0:00:54.5]} 5... Bb7 {[%clk 0:00:57.9]} 6. Nf3 {[%clk 0:00:51.8]} 6... e6 {[%clk 0:00:57.5]} 7. Bd3 {[%clk 0:00:50.2]} 7... d5 {[%clk 0:00:57.1]} 8. e5 {[%clk 0:00:49.6]} 8... f6 {[%clk 0:00:55.6]} 9. Nxb5 {[%clk 0:00:48.5]} 9... cxb5 {[%clk 0:00:53.9]} 10. Bxb5+ {[%clk 0:00:48.3]} 10... Bc6 {[%clk 0:00:52.6]} 11. Qb3 {[%clk 0:00:48]} 11... Bxb5 {[%clk 0:00:50.4]} 12. Qxb5+ {[%clk 0:00:47.7]} 12... Nd7 {[%clk 0:00:49.8]} 13. O-O {[%clk 0:00:38.5]} 13... Rb8 {[%clk 0:00:49]} 14. Qa4 {[%clk 0:00:38.2]} 14... Kf7 {[%clk 0:00:44.9]} 15. g4 {[%clk 0:00:33.5]} 15... Nb6 {[%clk 0:00:44]} 16. Qc2 {[%clk 0:00:31.4]} 16... Rc8 {[%clk 0:00:42.3]} 17. Qd2 {[%clk 0:00:29.6]} 17... Nc4 {[%clk 0:00:38.1]} 18. Qf4 {[%clk 0:00:24.1]} 18... g5 {[%clk 0:00:34.6]} 19. Nxg5+ {[%clk 0:00:20.3]} 19... Ke8 {[%clk 0:00:29.8]} 20. Nxe6 {[%clk 0:00:19]} 20... Kd7 {[%clk 0:00:26.4]} 21. exf6 {[%clk 0:00:15.5]} 21... Qe8 {[%clk 0:00:21.1]} 22. Nc5+ {[%clk 0:00:12.8]} 22... Rxc5 {[%clk 0:00:19.3]} 23. dxc5 {[%clk 0:00:11.5]} 23... Qf7 {[%clk 0:00:16.8]} 24. Be3 {[%clk 0:00:09]} 24... Nxe3 {[%clk 0:00:15.3]} 25. Qxe3 {[%clk 0:00:08]} 25... Nxf6 {[%clk 0:00:12.8]} 26. b4 {[%clk 0:00:07.5]} 26... Bg7 {[%clk 0:00:07.2]} 27. Qh3 {[%clk 0:00:07]} 27... Re8 {[%clk 0:00:04.8]} 28. g5+ {[%clk 0:00:05.4]} 28... Kc6 {[%clk 0:00:02.4]} 29. gxf6 {[%clk 0:00:05]} 29... Qxf6 {[%clk 0:00:01]} 30. b5+ {[%clk 0:00:04.7]} 1-0

[Event "Live Chess"]
[Site "Chess.com"]
[Date "2010.12.14"]
[Round "-"]
[White "hipposcottimus"]
[Black "caturku1"]
[Result "1-0"]
[CurrentPosition "r2k2r1/pp2bR2/4Pn2/2P5/2P3n1/2N2N2/PP4PP/R1B3K1 b - -"]
[Timezone "UTC"]
[ECO "C40"]
[ECOUrl "https://www.chess.com/openings/Kings-Pawn-Opening-Kings-Knight-Gunderam-Gambit"]
[UTCDate "2010.12.14"]
[UTCTime "10:04:09"]
[WhiteElo "1640"]
[BlackElo "1474"]
[TimeControl "60"]
[Termination "hipposcottimus won on time"]
[StartTime "10:04:09"]
[EndDate "2010.12.14"]
[EndTime "10:06:11"]
[Link "https://www.chess.com/game/live/77162483"]

1. e4 {[%clk 0:01:00]} 1... e5 {[%clk 0:01:00]} 2. Nf3 {[%clk 0:00:59.6]} 2... c6 {[%clk 0:00:59.5]} 3. c4 {[%clk 0:00:57.5]} 3... d6 {[%clk 0:00:58.7]} 4. Nc3 {[%clk 0:00:56.6]} 4... f6 {[%clk 0:00:58.2]} 5. d3 {[%clk 0:00:56.3]} 5... Bg4 {[%clk 0:00:57.1]} 6. Be2 {[%clk 0:00:56]} 6... Be7 {[%clk 0:00:52.2]} 7. Nd2 {[%clk 0:00:53.9]} 7... Be6 {[%clk 0:00:46.3]} 8. Bg4 {[%clk 0:00:51.2]} 8... Bf7 {[%clk 0:00:42.5]} 9. O-O {[%clk 0:00:46.5]} 9... Nd7 {[%clk 0:00:41]} 10. f4 {[%clk 0:00:45.6]} 10... f5 {[%clk 0:00:38.6]} 11. fxe5 {[%clk 0:00:44]} 11... fxg4 {[%clk 0:00:37.5]} 12. exd6 {[%clk 0:00:42.1]} 12... Bxd6 {[%clk 0:00:36.1]} 13. Qxg4 {[%clk 0:00:38.4]} 13... Ngf6 {[%clk 0:00:30.7]} 14. Qxg7 {[%clk 0:00:37.2]} 14... Rg8 {[%clk 0:00:30.7]} 15. Qh6 {[%clk 0:00:36.2]} 15... Ng4 {[%clk 0:00:27.7]} 16. Qxh7 {[%clk 0:00:32.5]} 16... Qg5 {[%clk 0:00:26.3]} 17. Qxf7+ {[%clk 0:00:28.1]} 17... Kd8 {[%clk 0:00:23.5]} 18. Rf5 {[%clk 0:00:24.1]} 18... Qg6 {[%clk 0:00:13.3]} 19. Nf3 {[%clk 0:00:19.8]} 19... Qxf7 {[%clk 0:00:08.1]} 20. Rxf7 {[%clk 0:00:19.5]} 20... Bc5+ {[%clk 0:00:08.1]} 21. d4 {[%clk 0:00:15.4]} 21... Be7 {[%clk 0:00:04.4]} 22. e5 {[%clk 0:00:12.5]} 22... c5 {[%clk 0:00:02.8]} 23. e6 {[%clk 0:00:11.5]} 23... Ndf6 {[%clk 0:00:00.6]} 24. dxc5 {[%clk 0:00:09.4]} 1-0

[Event "Live Chess"]
[Site "Chess.com"]
[Date "2010.12.14"]
[Round "-"]
[White "Amphie31"]
[Black "hipposcottimus"]
[Result "0-1"]
[CurrentPosition "r1b3k1/pp4pp/8/4p3/8/8/PPP3PP/5r1K w - -"]
[Timezone "UTC"]
[ECO "C50"]
[ECOUrl "https://www.chess.com/openings/Italian-Game"]
[UTCDate "2010.12.14"]
[UTCTime "10:01:47"]
[WhiteElo "1398"]
[BlackElo "1635"]
[TimeControl "60"]
[Termination "hipposcottimus won by checkmate"]
[StartTime "10:01:47"]
[EndDate "2010.12.14"]
[EndTime "10:03:00"]
[Link "https://www.chess.com/game/live/77162190"]

1. e4 {[%clk 0:01:00]} 1... e5 {[%clk 0:01:00]} 2. Bc4 {[%clk 0:00:59.7]} 2... Nc6 {[%clk 0:00:59.2]} 3. Nf3 {[%clk 0:00:59.3]} 3... Nf6 {[%clk 0:00:55.3]} 4. Ng5 {[%clk 0:00:57.1]} 4... d5 {[%clk 0:00:53.6]} 5. exd5 {[%clk 0:00:53.7]} 5... Na5 {[%clk 0:00:52.5]} 6. Nxf7 {[%clk 0:00:44.6]} 6... Kxf7 {[%clk 0:00:51.4]} 7. d6+ {[%clk 0:00:44]} 7... Nxc4 {[%clk 0:00:50.5]} 8. dxc7 {[%clk 0:00:41.5]} 8... Qxc7 {[%clk 0:00:49.2]} 9. O-O {[%clk 0:00:40.6]} 9... Bc5 {[%clk 0:00:47]} 10. d3 {[%clk 0:00:39.6]} 10... Nd6 {[%clk 0:00:44.8]} 11. Be3 {[%clk 0:00:38.7]} 11... Rf8 {[%clk 0:00:41.3]} 12. Bxc5 {[%clk 0:00:37.3]} 12... Qxc5 {[%clk 0:00:41]} 13. Nc3 {[%clk 0:00:36.4]} 13... Kg8 {[%clk 0:00:40.3]} 14. Ne4 {[%clk 0:00:34.4]} 14... Ndxe4 {[%clk 0:00:37.7]} 15. dxe4 {[%clk 0:00:33.5]} 15... Nxe4 {[%clk 0:00:37.4]} 16. Kh1 {[%clk 0:00:31.9]} 16... Nxf2+ {[%clk 0:00:33.5]} 17. Rxf2 {[%clk 0:00:31.2]} 17... Qxf2 {[%clk 0:00:31.7]} 18. Qf1 {[%clk 0:00:30.7]} 18... Qxf1+ {[%clk 0:00:30.2]} 19. Rxf1 {[%clk 0:00:27.1]} 19... Rxf1# {[%clk 0:00:29.8]} 0-1

[Event "Live Chess"]
[Site "Chess.com"]
[Date "2010.12.14"]
[Round "-"]
[White "hipposcottimus"]
[Black "Amphie31"]
[Result "1-0"]
[CurrentPosition "r4rk1/pp1b2pp/2p5/6P1/3q1p2/3B1R2/PP2QN1P/6K1 b - -"]
[Timezone "UTC"]
[ECO "C21"]
[ECOUrl "https://www.chess.com/openings/Center-Game-Accepted-Ross-Gambit"]
[UTCDate "2010.12.14"]
[UTCTime "09:59:47"]
[WhiteElo "1632"]
[BlackElo "1401"]
[TimeControl "60"]
[Termination "hipposcottimus won on time"]
[StartTime "09:59:47"]
[EndDate "2010.12.14"]
[EndTime "10:01:40"]
[Link "https://www.chess.com/game/live/77161837"]

1. e4 {[%clk 0:01:00]} 1... e5 {[%clk 0:01:00]} 2. d4 {[%clk 0:00:59.1]} 2... exd4 {[%clk 0:00:58]} 3. Bd3 {[%clk 0:00:58.7]} 3... Nc6 {[%clk 0:00:55.5]} 4. c3 {[%clk 0:00:58.3]} 4... d6 {[%clk 0:00:47.4]} 5. cxd4 {[%clk 0:00:55.7]} 5... Nxd4 {[%clk 0:00:45.4]} 6. Nc3 {[%clk 0:00:55.4]} 6... Be6 {[%clk 0:00:41.6]} 7. Be3 {[%clk 0:00:55.1]} 7... Nc6 {[%clk 0:00:40.1]} 8. Nf3 {[%clk 0:00:52.4]} 8... Be7 {[%clk 0:00:39.6]} 9. O-O {[%clk 0:00:51.5]} 9... Nf6 {[%clk 0:00:39.2]} 10. e5 {[%clk 0:00:51.2]} 10... dxe5 {[%clk 0:00:37.9]} 11. Nxe5 {[%clk 0:00:50.8]} 11... Nxe5 {[%clk 0:00:37.2]} 12. Bb5+ {[%clk 0:00:49.9]} 12... Bd7 {[%clk 0:00:33.9]} 13. Be2 {[%clk 0:00:49.6]} 13... O-O {[%clk 0:00:32]} 14. f4 {[%clk 0:00:49]} 14... Neg4 {[%clk 0:00:31.1]} 15. Bf2 {[%clk 0:00:48.2]} 15... Nxf2 {[%clk 0:00:29.6]} 16. Rxf2 {[%clk 0:00:48]} 16... Bc5 {[%clk 0:00:25]} 17. Ne4 {[%clk 0:00:43.9]} 17... Bxf2+ {[%clk 0:00:23.8]} 18. Nxf2 {[%clk 0:00:43.1]} 18... c6 {[%clk 0:00:20.2]} 19. Qc2 {[%clk 0:00:42.8]} 19... Nd5 {[%clk 0:00:16.1]} 20. Bd3 {[%clk 0:00:42.2]} 20... f5 {[%clk 0:00:15.1]} 21. g4 {[%clk 0:00:37.4]} 21... Ne3 {[%clk 0:00:14.1]} 22. Qd2 {[%clk 0:00:33.5]} 22... Qf6 {[%clk 0:00:12.5]} 23. g5 {[%clk 0:00:32]} 23... Qd4 {[%clk 0:00:07.5]} 24. Re1 {[%clk 0:00:28.7]} 24... Qxf4 {[%clk 0:00:06.5]} 25. Rxe3 {[%clk 0:00:27.3]} 25... Qg4+ {[%clk 0:00:04.8]} 26. Rg3 {[%clk 0:00:26.5]} 26... Qd4 {[%clk 0:00:01.4]} 27. Qe2 {[%clk 0:00:23.3]} 27... f4 {[%clk 0:00:00.6]} 28. Rf3 {[%clk 0:00:21.1]} 1-0

[Event "Live Chess"]
[Site "Chess.com"]
[Date "2010.12.14"]
[Round "-"]
[White "Amphie31"]
[Black "hipposcottimus"]
[Result "0-1"]
[CurrentPosition "1R6/p1p3pp/5rk1/5n2/4Qp2/2PP4/P1P2PPP/6K1 w - -"]
[Timezone "UTC"]
[ECO "C42"]
[ECOUrl "https://www.chess.com/openings/Petrovs-Defense-Urusov-Gambit"]
[UTCDate "2010.12.14"]
[UTCTime "09:57:49"]
[WhiteElo "1404"]
[BlackElo "1629"]
[TimeControl "60"]
[Termination "hipposcottimus won on time"]
[StartTime "09:57:49"]
[EndDate "2010.12.14"]
[EndTime "09:59:41"]
[Link "https://www.chess.com/game/live/77161424"]

1. e4 {[%clk 0:01:00]} 1... e5 {[%clk 0:01:00]} 2. Bc4 {[%clk 0:00:59.6]} 2... Nf6 {[%clk 0:00:58.3]} 3. Nf3 {[%clk 0:00:59.3]} 3... Nc6 {[%clk 0:00:57.2]} 4. Nc3 {[%clk 0:00:58.6]} 4... Bb4 {[%clk 0:00:55.4]} 5. d3 {[%clk 0:00:49.6]} 5... d5 {[%clk 0:00:51.2]} 6. exd5 {[%clk 0:00:47.1]} 6... Nxd5 {[%clk 0:00:49.5]} 7. Bd2 {[%clk 0:00:39.9]} 7... Nf4 {[%clk 0:00:45]} 8. Bxf4 {[%clk 0:00:38.1]} 8... Bxc3+ {[%clk 0:00:43.3]} 9. bxc3 {[%clk 0:00:36.3]} 9... exf4 {[%clk 0:00:42.6]} 10. O-O {[%clk 0:00:34.8]} 10... Be6 {[%clk 0:00:41.8]} 11. Qe2 {[%clk 0:00:33.1]} 11... O-O {[%clk 0:00:39.6]} 12. Bxe6 {[%clk 0:00:30.6]} 12... fxe6 {[%clk 0:00:39.3]} 13. Qxe6+ {[%clk 0:00:28.2]} 13... Kh8 {[%clk 0:00:39]} 14. Ng5 {[%clk 0:00:26.3]} 14... Rf6 {[%clk 0:00:34.4]} 15. Qe4 {[%clk 0:00:23.3]} 15... Rh6 {[%clk 0:00:32.2]} 16. Nf7+ {[%clk 0:00:21.1]} 16... Kg8 {[%clk 0:00:28.6]} 17. Nxd8 {[%clk 0:00:18.7]} 17... Rxd8 {[%clk 0:00:28.3]} 18. Rfe1 {[%clk 0:00:17.9]} 18... Rf8 {[%clk 0:00:26.9]} 19. Rab1 {[%clk 0:00:17.1]} 19... Rg6 {[%clk 0:00:25.8]} 20. Rxb7 {[%clk 0:00:15.6]} 20... Rgf6 {[%clk 0:00:24.8]} 21. Reb1 {[%clk 0:00:12.4]} 21... Ne7 {[%clk 0:00:23.8]} 22. Rb8 {[%clk 0:00:11]} 22... Kf7 {[%clk 0:00:21.1]} 23. Rxf8+ {[%clk 0:00:07.5]} 23... Kxf8 {[%clk 0:00:20.8]} 24. Rb8+ {[%clk 0:00:05.1]} 24... Kf7 {[%clk 0:00:20.5]} 25. Qc4+ {[%clk 0:00:03.3]} 25... Kg6 {[%clk 0:00:20.2]} 26. Qe4+ {[%clk 0:00:01.8]} 26... Nf5 {[%clk 0:00:19.6]} 0-1

[Event "Live Chess"]
[Site "Chess.com"]
[Date "2010.12.14"]
[Round "-"]
[White "hipposcottimus"]
[Black "Amphie31"]
[Result "0-1"]
[CurrentPosition "N4b1r/pp1knppp/3p2q1/3Bp3/4P3/5P1b/PPPP1P1P/R1BQ1R1K b - -"]
[Timezone "UTC"]
[ECO "C50"]
[ECOUrl "https://www.chess.com/openings/Italian-Game"]
[UTCDate "2010.12.14"]
[UTCTime "09:56:41"]
[WhiteElo "1625"]
[BlackElo "1408"]
[TimeControl "60"]
[Termination "Amphie31 won by resignation"]
[StartTime "09:56:41"]
[EndDate "2010.12.14"]
[EndTime "09:57:40"]
[Link "https://www.chess.com/game/live/77161220"]

1. e4 {[%clk 0:01:00]} 1... e5 {[%clk 0:01:00]} 2. Nf3 {[%clk 0:00:58.4]} 2... Nc6 {[%clk 0:00:59.6]} 3. Bc4 {[%clk 0:00:57.9]} 3... Qf6 {[%clk 0:00:58.5]} 4. Nc3 {[%clk 0:00:55.5]} 4... Nge7 {[%clk 0:00:56.8]} 5. Bd5 {[%clk 0:00:53.4]} 5... Nd4 {[%clk 0:00:54.4]} 6. O-O {[%clk 0:00:42.3]} 6... Nxf3+ {[%clk 0:00:50.6]} 7. gxf3 {[%clk 0:00:39.1]} 7... d6 {[%clk 0:00:45.6]} 8. Nb5 {[%clk 0:00:36.5]} 8... Bh3 {[%clk 0:00:43.7]} 9. Nxc7+ {[%clk 0:00:33.2]} 9... Kd7 {[%clk 0:00:41]} 10. Nxa8 {[%clk 0:00:32]} 10... Qg6+ {[%clk 0:00:40.1]} 11. Kh1 {[%clk 0:00:26.6]} 0-1

[Event "Live Chess"]
[Site "Chess.com"]
[Date "2010.12.14"]
[Round "-"]
[White "Amphie31"]
[Black "hipposcottimus"]
[Result "0-1"]
[CurrentPosition "7k/pp4pp/2p3r1/8/5pR1/P2P1P1P/1Pr2P1K/4B1R1 w - -"]
[Timezone "UTC"]
[ECO "C42"]
[ECOUrl "https://www.chess.com/openings/Petrovs-Defense-Urusov-Gambit"]
[UTCDate "2010.12.14"]
[UTCTime "09:54:40"]
[WhiteElo "1394"]
[BlackElo "1637"]
[TimeControl "60"]
[Termination "hipposcottimus won on time"]
[StartTime "09:54:40"]
[EndDate "2010.12.14"]
[EndTime "09:56:33"]
[Link "https://www.chess.com/game/live/77160805"]

1. e4 {[%clk 0:01:00]} 1... e5 {[%clk 0:01:00]} 2. Bc4 {[%clk 0:00:59.7]} 2... Nf6 {[%clk 0:00:58.3]} 3. Nf3 {[%clk 0:00:59.4]} 3... d5 {[%clk 0:00:56.9]} 4. exd5 {[%clk 0:00:58.1]} 4... Nxd5 {[%clk 0:00:56.3]} 5. Bxd5 {[%clk 0:00:57.4]} 5... Qxd5 {[%clk 0:00:55.9]} 6. O-O {[%clk 0:00:55.7]} 6... Bg4 {[%clk 0:00:50.4]} 7. Nc3 {[%clk 0:00:50.5]} 7... Qc6 {[%clk 0:00:49.2]} 8. h3 {[%clk 0:00:43]} 8... Bxf3 {[%clk 0:00:47.6]} 9. Qxf3 {[%clk 0:00:38.9]} 9... Qxf3 {[%clk 0:00:46.7]} 10. gxf3 {[%clk 0:00:37.7]} 10... Bd6 {[%clk 0:00:46.4]} 11. Ne4 {[%clk 0:00:36.3]} 11... Be7 {[%clk 0:00:42.6]} 12. d3 {[%clk 0:00:31.8]} 12... f5 {[%clk 0:00:41.7]} 13. Ng3 {[%clk 0:00:26.4]} 13... f4 {[%clk 0:00:41.3]} 14. Nf5 {[%clk 0:00:25.4]} 14... O-O {[%clk 0:00:39.9]} 15. Nxe7+ {[%clk 0:00:23.6]} 15... Kh8 {[%clk 0:00:39.7]} 16. Nd5 {[%clk 0:00:21.6]} 16... c6 {[%clk 0:00:38.5]} 17. Nc3 {[%clk 0:00:19.9]} 17... Na6 {[%clk 0:00:36.3]} 18. a3 {[%clk 0:00:18.6]} 18... Nc5 {[%clk 0:00:35]} 19. Bd2 {[%clk 0:00:17.3]} 19... Ne6 {[%clk 0:00:34.7]} 20. Ne4 {[%clk 0:00:15.7]} 20... Ng5 {[%clk 0:00:34.2]} 21. Nxg5 {[%clk 0:00:14.2]} 21... Rf5 {[%clk 0:00:33.8]} 22. Ne6 {[%clk 0:00:12.9]} 22... Rf6 {[%clk 0:00:32.4]} 23. Nxf4 {[%clk 0:00:10.9]} 23... exf4 {[%clk 0:00:29.9]} 24. Kh2 {[%clk 0:00:08.1]} 24... Rg6 {[%clk 0:00:29.4]} 25. Rg1 {[%clk 0:00:07.6]} 25... Rf6 {[%clk 0:00:28.7]} 26. Raf1 {[%clk 0:00:05.8]} 26... Re8 {[%clk 0:00:28]} 27. Rg4 {[%clk 0:00:05]} 27... Re2 {[%clk 0:00:26.9]} 28. Be1 {[%clk 0:00:03.3]} 28... Rxc2 {[%clk 0:00:24.7]} 29. Rfg1 {[%clk 0:00:01.4]} 29... Rg6 {[%clk 0:00:21]} 0-1

[Event "Live Chess"]
[Site "Chess.com"]
[Date "2010.12.14"]
[Round "-"]
[White "deathrider2010"]
[Black "hipposcottimus"]
[Result "1-0"]
[CurrentPosition "r1b4k/pp4p1/2p2nB1/2q4P/3N4/1PP5/P1Q3P1/3K2R1 b - -"]
[Timezone "UTC"]
[ECO "B12"]
[ECOUrl "https://www.chess.com/openings/Caro-Kann-Defense-2.d4-d5"]
[UTCDate "2010.12.14"]
[UTCTime "09:52:22"]
[WhiteElo "1604"]
[BlackElo "1634"]
[TimeControl "60"]
[Termination "deathrider2010 won on time"]
[StartTime "09:52:22"]
[EndDate "2010.12.14"]
[EndTime "09:54:07"]
[Link "https://www.chess.com/game/live/77160298"]

1. d4 {[%clk 0:01:00]} 1... d5 {[%clk 0:01:00]} 2. e4 {[%clk 0:00:59.7]} 2... c6 {[%clk 0:00:59.7]} 3. c3 {[%clk 0:00:59.3]} 3... dxe4 {[%clk 0:00:58.4]} 4. Nd2 {[%clk 0:00:58.5]} 4... Nf6 {[%clk 0:00:58.1]} 5. f3 {[%clk 0:00:56.3]} 5... e6 {[%clk 0:00:57.7]} 6. fxe4 {[%clk 0:00:54.6]} 6... Be7 {[%clk 0:00:57.3]} 7. Bd3 {[%clk 0:00:53.7]} 7... O-O {[%clk 0:00:54.9]} 8. Qc2 {[%clk 0:00:53.4]} 8... Ne8 {[%clk 0:00:54.5]} 9. Ne2 {[%clk 0:00:53]} 9... f5 {[%clk 0:00:53.7]} 10. Nf3 {[%clk 0:00:52.7]} 10... fxe4 {[%clk 0:00:52.4]} 11. Bxe4 {[%clk 0:00:52.4]} 11... Bf6 {[%clk 0:00:51.8]} 12. Bxh7+ {[%clk 0:00:50.4]} 12... Kh8 {[%clk 0:00:50.3]} 13. h4 {[%clk 0:00:46.1]} 13... Nd7 {[%clk 0:00:49.5]} 14. Bg5 {[%clk 0:00:45.5]} 14... Bxg5 {[%clk 0:00:47.3]} 15. Nxg5 {[%clk 0:00:45.2]} 15... Nef6 {[%clk 0:00:45.5]} 16. Bg6 {[%clk 0:00:41.3]} 16... e5 {[%clk 0:00:27.9]} 17. Nf7+ {[%clk 0:00:39.3]} 17... Rxf7 {[%clk 0:00:26.8]} 18. Bxf7 {[%clk 0:00:38.9]} 18... exd4 {[%clk 0:00:25.9]} 19. Nxd4 {[%clk 0:00:36]} 19... Ne5 {[%clk 0:00:23.2]} 20. Bg6 {[%clk 0:00:34.2]} 20... Qe7 {[%clk 0:00:21.9]} 21. O-O-O {[%clk 0:00:32.1]} 21... Qc5 {[%clk 0:00:17.7]} 22. b3 {[%clk 0:00:31.3]} 22... Neg4 {[%clk 0:00:07]} 23. h5 {[%clk 0:00:28.3]} 23... Nf2 {[%clk 0:00:04.5]} 24. Rhg1 {[%clk 0:00:25]} 24... Nxd1 {[%clk 0:00:03]} 25. Kxd1 {[%clk 0:00:24.7]} 1-0

[Event "Live Chess"]
[Site "Chess.com"]
[Date "2010.12.14"]
[Round "-"]
[White "hipposcottimus"]
[Black "deathrider2010"]
[Result "0-1"]
[CurrentPosition "8/1R5p/P1k1p1p1/1p3p2/8/1P3P2/6PP/6K1 w - -"]
[Timezone "UTC"]
[ECO "B12"]
[ECOUrl "https://www.chess.com/openings/Caro-Kann-Defense-2.d4"]
[UTCDate "2010.12.14"]
[UTCTime "09:49:36"]
[WhiteElo "1643"]
[BlackElo "1595"]
[TimeControl "60"]
[Termination "deathrider2010 won on time"]
[StartTime "09:49:36"]
[EndDate "2010.12.14"]
[EndTime "09:51:43"]
[Link "https://www.chess.com/game/live/77159741"]

1. e4 {[%clk 0:01:00]} 1... c6 {[%clk 0:01:00]} 2. d4 {[%clk 0:00:58.2]} 2... b6 {[%clk 0:00:59.7]} 3. d5 {[%clk 0:00:55.6]} 3... d6 {[%clk 0:00:59.5]} 4. dxc6 {[%clk 0:00:54.2]} 4... Nxc6 {[%clk 0:00:59.2]} 5. Bb5 {[%clk 0:00:52.5]} 5... Bd7 {[%clk 0:00:58.9]} 6. Nc3 {[%clk 0:00:48.7]} 6... g6 {[%clk 0:00:57.8]} 7. Nge2 {[%clk 0:00:39.2]} 7... Nf6 {[%clk 0:00:57.4]} 8. O-O {[%clk 0:00:36.8]} 8... Bg7 {[%clk 0:00:57.2]} 9. Bg5 {[%clk 0:00:32.1]} 9... O-O {[%clk 0:00:56.9]} 10. Bxf6 {[%clk 0:00:31.2]} 10... Bxf6 {[%clk 0:00:55.9]} 11. Nd5 {[%clk 0:00:30.8]} 11... Bg7 {[%clk 0:00:52.3]} 12. Nef4 {[%clk 0:00:27.4]} 12... Ne5 {[%clk 0:00:50.6]} 13. Bd3 {[%clk 0:00:24]} 13... Nxd3 {[%clk 0:00:48.3]} 14. Nxd3 {[%clk 0:00:23.7]} 14... Be6 {[%clk 0:00:47.5]} 15. Ne3 {[%clk 0:00:23.3]} 15... Bd7 {[%clk 0:00:46.6]} 16. Rb1 {[%clk 0:00:21.1]} 16... Bc8 {[%clk 0:00:45.7]} 17. c4 {[%clk 0:00:20.3]} 17... Bb7 {[%clk 0:00:45.3]} 18. f3 {[%clk 0:00:17.4]} 18... Rb8 {[%clk 0:00:44.8]} 19. Ng4 {[%clk 0:00:15.5]} 19... e6 {[%clk 0:00:44]} 20. e5 {[%clk 0:00:15]} 20... dxe5 {[%clk 0:00:42.7]} 21. Ndxe5 {[%clk 0:00:14.7]} 21... Qxd1 {[%clk 0:00:41.4]} 22. Rbxd1 {[%clk 0:00:14.2]} 22... Bxe5 {[%clk 0:00:39.2]} 23. Nxe5 {[%clk 0:00:13.9]} 23... Ba6 {[%clk 0:00:36]} 24. Nd7 {[%clk 0:00:13.6]} 24... Rbd8 {[%clk 0:00:34.2]} 25. Nxf8 {[%clk 0:00:11.5]} 25... Rxd1 {[%clk 0:00:33.2]} 26. Rxd1 {[%clk 0:00:11.2]} 26... Kxf8 {[%clk 0:00:31.2]} 27. Rd8+ {[%clk 0:00:10.9]} 27... Ke7 {[%clk 0:00:29.7]} 28. Ra8 {[%clk 0:00:10.5]} 28... Bxc4 {[%clk 0:00:27]} 29. Rxa7+ {[%clk 0:00:10.1]} 29... Kd6 {[%clk 0:00:24.7]} 30. b3 {[%clk 0:00:09.8]} 30... Bb5 {[%clk 0:00:22]} 31. a4 {[%clk 0:00:09.5]} 31... Bc6 {[%clk 0:00:20.5]} 32. Ra6 {[%clk 0:00:07.8]} 32... Kc7 {[%clk 0:00:18.9]} 33. Ra7+ {[%clk 0:00:06.5]} 33... Bb7 {[%clk 0:00:17.8]} 34. a5 {[%clk 0:00:03.7]} 34... f5 {[%clk 0:00:17.3]} 35. a6 {[%clk 0:00:00.8]} 35... Kc6 {[%clk 0:00:13]} 36. Rxb7 {[%clk 0:00:00.5]} 36... b5 {[%clk 0:00:10.6]} 0-1

[Event "Live Chess"]
[Site "Chess.com"]
[Date "2010.12.14"]
[Round "-"]
[White "hipposcottimus"]
[Black "laconnect"]
[Result "0-1"]
[CurrentPosition "5rkB/pb1r2Np/1p3Qp1/1q1p4/8/8/PP3PPP/4RRK1 w - -"]
[Timezone "UTC"]
[ECO "B00"]
[ECOUrl "https://www.chess.com/openings/Nimzowitsch-Defense-Kennedy-Linksspringer-Variation-3...Nce7-4.c4"]
[UTCDate "2010.12.14"]
[UTCTime "09:45:13"]
[WhiteElo "1641"]
[BlackElo "1830"]
[TimeControl "60"]
[Termination "laconnect won on time"]
[StartTime "09:45:13"]
[EndDate "2010.12.14"]
[EndTime "09:47:17"]
[Link "https://www.chess.com/game/live/77158912"]

1. e4 {[%clk 0:01:00]} 1... Nc6 {[%clk 0:01:00]} 2. d4 {[%clk 0:00:59.2]} 2... e5 {[%clk 0:00:59.1]} 3. d5 {[%clk 0:00:58.4]} 3... Nce7 {[%clk 0:00:57.9]} 4. c4 {[%clk 0:00:57.1]} 4... c6 {[%clk 0:00:57.5]} 5. Nc3 {[%clk 0:00:55.5]} 5... cxd5 {[%clk 0:00:57]} 6. cxd5 {[%clk 0:00:55.2]} 6... b6 {[%clk 0:00:55.4]} 7. Bb5 {[%clk 0:00:54.3]} 7... Nf6 {[%clk 0:00:53.8]} 8. Nf3 {[%clk 0:00:52.2]} 8... Qc7 {[%clk 0:00:52.8]} 9. O-O {[%clk 0:00:50.5]} 9... g6 {[%clk 0:00:51.5]} 10. Bg5 {[%clk 0:00:46.9]} 10... Bg7 {[%clk 0:00:50.6]} 11. Bh4 {[%clk 0:00:42.6]} 11... O-O {[%clk 0:00:49.4]} 12. Bg3 {[%clk 0:00:41.6]} 12... Re8 {[%clk 0:00:48.7]} 13. Bxe5 {[%clk 0:00:40.7]} 13... Qc5 {[%clk 0:00:46.2]} 14. Bd4 {[%clk 0:00:38.8]} 14... Qd6 {[%clk 0:00:44.5]} 15. e5 {[%clk 0:00:36.7]} 15... Qc7 {[%clk 0:00:40.5]} 16. exf6 {[%clk 0:00:35.7]} 16... Bxf6 {[%clk 0:00:39.3]} 17. Bxf6 {[%clk 0:00:34.9]} 17... Nf5 {[%clk 0:00:35.8]} 18. d6 {[%clk 0:00:27.8]} 18... Nxd6 {[%clk 0:00:32.3]} 19. Qd4 {[%clk 0:00:25.9]} 19... Nxb5 {[%clk 0:00:31.3]} 20. Nxb5 {[%clk 0:00:24.3]} 20... Qc6 {[%clk 0:00:29.1]} 21. Bh8 {[%clk 0:00:22.3]} 21... f6 {[%clk 0:00:24.7]} 22. Bxf6 {[%clk 0:00:19.2]} 22... Qxb5 {[%clk 0:00:23.9]} 23. Bh8 {[%clk 0:00:18]} 23... Re7 {[%clk 0:00:22.5]} 24. Ng5 {[%clk 0:00:15.7]} 24... d5 {[%clk 0:00:20.2]} 25. Rae1 {[%clk 0:00:11]} 25... Rd7 {[%clk 0:00:17.7]} 26. Qf6 {[%clk 0:00:08]} 26... Bb7 {[%clk 0:00:13.3]} 27. Ne6 {[%clk 0:00:03.8]} 27... Re8 {[%clk 0:00:11.2]} 28. Ng7 {[%clk 0:00:01.1]} 28... Rf8 {[%clk 0:00:09.3]} 0-1